bitfinex/quotes_SOLUSD_20250307
["timestamp","ask_amount","ask_price","bid_price","bid_amount"]
[1741370054352,5.1731,144.98,144.9,7.82]
[1741370055128,3.5828,144.97,144.9,7.82]
[1741370055445,3.5828,144.97,144.86,157.3]
[1741370055947,6.1537,144.96,144.82,7.6411]
[1741370056160,17.592,144.95,144.83,7.82]
[1741370056345,7.82,144.94,144.78,157.0722]
[1741370056525,42.37769866,144.94,144.79,7.82]
[1741370057045,7.82,144.94,144.79,7.82]
[1741370057247,42.37769866,144.94,144.79,7.82]
[1741370057945,34.55769866,144.94,144.8,47.01376235]
[1741370058148,70.60970773,144.95,144.82,47.01376235]
[1741370058348,27.9403,144.95,144.83,1.03511135]
[1741370058537,27.9403,144.95,144.81,48.04880454]
[1741370058738,62.78970773,144.95,144.82,47.01376235]
[1741370059037,62.78970773,144.95,144.83,1.03510391]
[1741370059238,62.78970773,144.95,144.79,7.82]
[1741370059559,73.13800773,144.95,144.81,47.01376235]
[1741370059753,73.13800773,144.95,144.82,48.04891982]
[1741370060127,73.13800773,144.95,144.84,47.01376235]
[1741370060322,73.13800773,144.95,144.85,8.85496544]
[1741370060527,73.13800773,144.95,144.86,7.82]
[1741370061457,17.592,144.95,144.86,8.85504068]
[1741370061636,7.2437,144.95,144.87,47.01376235]
[1741370061965,7.2437,144.95,144.88,48.04848651]
[1741370062143,7.2437,144.95,144.88,1.03472416]
[1741370062339,5.1741,144.95,144.86,367.86852443]
[1741370062553,5.1741,144.95,144.87,47.01376235]
[1741370062764,3.5828,144.97,144.88,1.03469594]
[1741370063068,3.5828,144.97,144.87,48.04859883]
[1741370063375,6.268,145.0,144.89,47.01376235]
[1741370063579,6.268,145.0,144.9,1.03459622]
[1741370063779,6.268,145.0,144.9,48.04835857]
[1741370063969,0.03,145.0,144.91,47.01376235]
[1741370064286,0.03,145.0,144.92,8.85438486]
[1741370064445,0.03,145.0,144.92,7.82]
[1741370065160,0.03,145.0,144.92,8.85452392]
[1741370065349,0.03,145.0,144.94,47.01376235]
[1741370065681,0.03,145.0,144.95,48.04796484]
[1741370065976,0.03,145.0,144.93,8.48184854]
[1741370066275,0.03,145.0,144.91,7.82]
[1741370066477,7.2408,145.01,144.91,7.82]
[1741370066639,5.172,145.01,144.91,7.82]
[1741370066974,15.5161,145.01,144.91,7.82]
[1741370067269,6.238,145.0,144.88,7.82]
[1741370067489,3.5646,144.99,144.88,7.82]
[1741370067984,3.5646,144.99,144.87,18.01419093]
[1741370068760,17.5885,144.98,144.83,149.453]
[1741370068990,17.5885,144.98,144.83,0.033]
[1741370069499,17.5885,144.98,144.83,1.06825653]
[1741370069995,25.4085,144.98,144.83,0.033]
[1741370070566,25.4085,144.98,144.83,1.06826284]
[1741370070765,25.4085,144.98,144.84,1.03514208]
[1741370070992,25.4085,144.98,144.84,48.04890443]
[1741370071179,7.2423,144.98,144.87,47.01376235]
[1741370071369,7.2423,144.98,144.88,7.82]
[1741370071576,4.8282,144.98,144.88,7.82]
[1741370072385,4.8282,144.98,144.89,1.034779]
[1741370072587,4.8282,144.98,144.89,48.04854135]
[1741370072784,1.3795,144.98,144.89,54.95014135]
[1741370073180,1.3793,145.0,144.92,47.01376235]
[1741370073492,9.8299,145.05,144.94,47.01376235]
[1741370073493,1.3789,145.04,144.94,47.01376235]
[1741370073691,1.3789,145.04,144.95,8.85420862]
[1741370073893,1.3789,145.04,144.95,55.86797097]
[1741370074088,1.3789,145.04,144.96,47.01376235]
[1741370074290,1.3787,145.06,144.98,47.01376235]
[1741370074476,1.3787,145.06,144.99,1.03393961]
[1741370075002,1.3785,145.08,145.02,47.01376235]
[1741370075193,1.3785,145.08,145.03,7.82]
[1741370076189,4.8248,145.08,145.03,7.82]
[1741370077007,6.8924,145.09,145.03,7.82]
[1741370078105,6.8924,145.09,144.99,149.42]
[1741370078276,13.1304,145.09,144.99,149.42]
[1741370078893,17.9549,145.09,144.99,149.42]
[1741370079204,17.9849,145.09,144.99,149.42]
[1741370079593,24.8773,145.09,144.93,54.70266235]
[1741370079900,24.8773,145.09,144.94,7.82]
[1741370081182,31.7697,145.09,144.94,7.82]
[1741370081808,39.5897,145.09,144.95,47.01376235]
[1741370082011,39.5897,145.09,144.94,8.85429404]
[1741370082189,39.5897,145.09,144.94,7.82]
[1741370082376,39.5897,145.09,144.94,8.85446647]
[1741370082590,39.5897,145.09,144.94,55.86822882]
[1741370084405,39.5897,145.09,144.96,47.01376235]
[1741370084620,39.5897,145.09,144.95,48.04779914]
[1741370084621,31.7697,145.09,144.95,48.04779914]
[1741370085108,31.7697,145.09,144.95,1.03403679]
[1741370085812,31.7697,145.09,144.95,48.04779914]
[1741370086015,31.7697,145.09,144.95,1.03403679]
[1741370086335,31.7697,145.09,144.99,47.01376235]
[1741370086502,31.7697,145.09,145.0,7.82]
[1741370087798,11.0925,145.09,145.0,62.76420981]
[1741370088007,1.4084,145.09,145.05,47.01376235]
[1741370088213,0.03,145.09,145.07,47.01376235]
[1741370088423,0.03,145.09,145.08,47.01376235]
[1741370088601,0.03,145.09,145.07,48.04713548]
[1741370088927,0.03,145.09,145.07,1.03337313]
[1741370089133,0.03,145.09,145.07,48.04713548]
[1741370089327,0.03,145.09,145.08,47.01376235]
[1741370089896,0.03,145.09,145.07,1.03337313]
[1741370090107,0.03,145.09,145.07,7.82]
[1741370091704,0.03,145.09,145.08,1.03341497]
[1741370092009,0.03,145.09,145.08,48.04717732]
[1741370092313,0.03,145.09,145.07,8.85334891]
[1741370092725,0.03,145.09,145.07,55.86711126]
[1741370092921,0.03,145.09,145.07,8.85334891]
[1741370093210,0.03,145.09,144.96,13.22948742]
[1741370093437,0.03,145.09,144.99,1.06686225]
[1741370093617,0.03,145.09,144.99,0.033]
[1741370094120,0.03,145.09,144.99,1.06697005]
[1741370094441,0.03,145.09,144.99,0.033]
[1741370095008,7.82,145.08,144.99,0.033]
[1741370095643,4.8252,145.07,144.99,0.033]
[1741370096347,11.7184,145.07,144.99,0.033]
[1741370096712,18.6116,145.07,144.99,0.033]
[1741370100035,17.233,145.07,144.99,0.033]
[1741370101619,17.233,145.07,144.99,0.0001]
[1741370101962,17.233,145.07,144.88,15.2648]
[1741370102129,17.233,145.07,144.87,1.06776279]
[1741370102340,9.8746,145.06,144.87,0.033]
[1741370102558,13.88017427,145.06,144.87,0.033]
[1741370103054,10.034,145.05,144.87,0.033]
[1741370103226,5.60586754,145.04,144.87,0.033]
[1741370103431,7.82,145.03,144.87,0.033]
[1741370103634,14.16007427,145.02,144.87,0.033]
[1741370103936,14.16007427,145.02,144.87,0.0001]
[1741370104133,26.4392,145.01,144.87,0.0001]
[1741370104328,32.04506754,145.01,144.87,0.0001]
[1741370104946,5.60586754,145.0,144.87,0.0001]
[1741370105537,7.82,144.99,144.87,0.0001]
[1741370105733,5.60586754,145.0,144.87,0.0001]
[1741370105934,7.82,144.99,144.87,0.0001]
[1741370106147,1.3795,144.98,144.87,7.8201]
[1741370106347,1.3795,144.98,144.9,47.01376235]
[1741370106647,1.3795,144.98,144.9,1.03465695]
[1741370106946,1.3795,144.98,144.9,48.0484193]
[1741370107149,1.3795,144.98,144.87,319.8201]
[1741370107367,1.3795,144.98,144.87,54.83386235]
[1741370107528,4.8282,144.98,144.87,55.86871354]
[1741370107857,1.3795,144.98,144.91,47.01376235]
[1741370108150,1.3792,145.01,144.91,48.04834236]
[1741370108347,11.7232,145.01,144.88,47.01376235]
[1741370108652,11.7232,145.01,144.87,54.83386235]
[1741370109154,11.7232,145.01,144.87,0.0001]
[1741370109733,18.6192,145.01,144.87,0.0001]
[1741370110341,18.6192,145.01,144.89,47.01376235]
[1741370110539,4.8272,145.01,144.92,47.01376235]
[1741370110741,4.8272,145.01,144.89,1.03466699]
[1741370110943,4.8272,145.01,144.92,47.01376235]
[1741370111252,1.3787,145.06,144.93,1.03452341]
[1741370111452,1.3786,145.08,145.01,47.01376235]
[1741370111653,1.3786,145.08,145.03,47.01376235]
[1741370112043,0.03,145.09,145.0,7.82]
[1741370112044,4.8545,145.09,145.0,7.82]
[1741370112350,3.4761,145.09,145.0,7.82]
[1741370113063,3.4761,145.09,145.0,55.8677648]
[1741370113362,0.03,145.09,145.03,47.01376235]
[1741370113537,0.03,145.09,145.04,47.01376235]
[1741370113740,0.03,145.09,145.03,48.04750524]
[1741370113938,0.03,145.09,145.0,7.82]
[1741370114541,0.03,145.09,145.01,8.85417186]
[1741370114742,0.03,145.09,145.03,47.01376235]
[1741370115062,0.03,145.09,145.01,7.82]
[1741370115442,0.03,145.09,144.99,47.04676235]
[1741370115644,0.03,145.09,145.0,55.86770088]
[1741370115846,0.03,145.09,145.02,47.01376235]
[1741370116146,0.03,145.09,145.0,8.85393853]
[1741370116354,0.03,145.09,145.03,48.04759622]
[1741370116950,0.03,145.09,145.07,47.01376235]
[1741370117147,0.03,145.09,145.08,54.83376235]
[1741370118353,1.8324557,145.12,145.08,108.7402247]
[1741370118544,1.8324557,145.12,145.11,94.0275247]
[1741370118745,1.8324557,145.12,145.11,1.03285421]
[1741370119142,1.8324557,145.12,145.09,48.04684163]
[1741370119358,3.2105557,145.12,145.08,7.82]
[1741370119649,3.2105557,145.12,145.04,149.34]
[1741370119650,6.6559557,145.12,145.04,149.34]
[1741370119843,6.6559557,145.12,145.05,7.82]
[1741370121174,3.2105557,145.12,145.07,47.01376235]
[1741370121360,3.2105557,145.12,145.08,1.03337194]
[1741370122072,6.6559557,145.12,145.05,7.82]
[1741370122445,6.6559557,145.12,145.01,7.82]
[1741370122645,13.5467557,145.12,144.99,1.06690427]
[1741370122846,13.5467557,145.12,145.0,47.01376235]
[1741370123063,20.4375557,145.12,145.03,47.01376235]
[1741370123268,20.4375557,145.12,145.0,47.01376235]
[1741370123472,20.4375557,145.12,144.99,0.033]
[1741370123784,20.4375557,145.12,144.99,47.04676235]
[1741370123967,20.4375557,145.12,144.99,0.033]
[1741370124551,27.3283557,145.12,144.99,0.033]
[1741370125775,27.3283557,145.12,144.99,47.04676235]
[1741370125977,20.4375557,145.12,145.0,8.85390078]
[1741370126176,3.2105557,145.12,145.03,47.01376235]
[1741370126381,3.2105557,145.12,145.02,47.01376235]
[1741370126678,3.2105557,145.12,145.03,48.0474643]
[1741370126993,6.6859557,145.12,145.03,1.03370195]
[1741370127166,3.2405557,145.12,145.03,48.0474643]
[1741370127359,3.2405557,145.12,145.03,1.03370195]
[1741370127560,3.2405557,145.12,145.04,1.03361767]
[1741370127761,3.2405557,145.12,145.04,48.04738002]
[1741370128085,3.2405557,145.12,145.04,1.03361767]
[1741370128288,6.6859557,145.12,145.01,1.03353851]
[1741370128502,6.6859557,145.12,145.01,7.82]
[1741370129381,13.5767557,145.12,145.01,7.82]
[1741370129558,6.3439,145.11,145.01,7.82]
[1741370130369,1.3783,145.1,145.01,7.82]
[1741370130671,4.8241,145.1,145.01,7.82]
[1741370132783,3.6463,145.09,144.99,0.033]
[1741370134783,4.8248,145.08,144.99,0.033]
[1741370134986,11.7175,145.08,144.99,0.033]
[1741370136189,4.8248,145.08,144.99,0.033]
[1741370136576,11.7175,145.08,144.99,0.033]
[1741370136967,19.5375,145.08,144.99,0.033]
[1741370137185,26.4302,145.08,144.99,0.033]
[1741370138175,4.628064,145.01,144.99,0.033]
[1741370138389,4.628064,145.01,144.9,1.03461085]
[1741370138576,4.628064,145.01,144.91,7.82]
[1741370138577,10.971964,145.01,144.91,7.82]
[1741370138776,4.8275,145.0,144.91,7.82]
[1741370139204,4.8275,145.0,144.87,149.2801]
[1741370139205,3.5552,144.99,144.87,149.2801]
[1741370139377,3.5552,144.99,144.88,7.82]
[1741370140374,3.5552,144.99,144.88,54.83376235]
[1741370140685,3.5552,144.99,144.91,0.033]
[1741370140892,11.7257,144.98,144.91,0.033]
[1741370142496,4.8282,144.98,144.91,0.033]
[1741370142791,1.3795,144.98,144.91,0.033]
[1741370142992,8.277,144.98,144.91,0.033]
[1741370143180,11.7257,144.98,144.91,0.033]
[1741370143691,4.8282,144.98,144.91,0.033]
[1741370144208,18.6232,144.98,144.91,0.033]
[1741370144386,26.4432,144.98,144.91,0.033]
[1741370145291,26.4432,144.98,144.87,0.0001]
[1741370145873,18.6232,144.98,144.87,0.0001]
[1741370147390,3.5532,144.96,144.87,0.0001]
[1741370147688,25.5207,144.98,144.84,0.033]
[1741370147689,3.6196,144.94,144.84,0.033]
[1741370147887,7.82,144.93,144.83,0.033]
[1741370148275,9.9545,144.92,144.76,0.033]
[1741370148484,159.3345,144.92,144.76,0.033]
[1741370148885,18.6321,144.91,144.76,0.033]
[1741370150403,7.82,144.9,144.76,0.033]
[1741370150605,4.8305,144.91,144.81,47.01376235]
[1741370150803,4.8305,144.91,144.81,54.83376235]
[1741370151204,4.8305,144.91,144.81,14.7254]
[1741370151404,1.3799,144.93,144.83,47.01376235]
[1741370151582,1.3799,144.93,144.81,367.86885522]
[1741370151783,4.8298,144.93,144.81,7.82]
[1741370152204,7.82,144.92,144.76,0.033]
[1741370152386,7.82,144.92,144.77,1.03565661]
[1741370152592,7.82,144.92,144.78,47.01376235]
[1741370152894,7.82,144.92,144.77,48.04941896]
[1741370153105,7.82,144.92,144.78,14.7265]
[1741370153106,4.8305,144.91,144.78,14.7265]
[1741370153410,7.82,144.92,144.79,1.03541644]
[1741370153604,7.82,144.92,144.8,47.01376235]
[1741370153822,7.82,144.92,144.81,48.04902698]
[1741370154010,7.82,144.92,144.79,1.03531019]
[1741370154311,7.82,144.92,144.79,47.01376235]
[1741370154679,7.82,144.92,144.8,1.03535552]
[1741370154880,7.82,144.95,144.79,48.04911558]
[1741370155194,7.82,144.95,144.76,0.033]
[1741370155509,10.1138,144.94,144.78,7.82]
[1741370157299,10.1138,144.94,144.76,0.033]
[1741370157522,10.1138,144.94,144.77,7.82]
[1741370158098,10.0285,144.93,144.76,0.033]
[1741370158404,3.6936,144.91,144.76,0.033]
[1741370159917,6.3349,144.9,144.76,0.033]
[1741370160121,7.82,144.89,144.76,0.033]
[1741370161021,7.82,144.89,144.77,7.82]
[1741370161361,6.3349,144.9,144.77,55.86941564]
[1741370161536,6.3349,144.9,144.79,47.01376235]
[1741370162021,3.6936,144.91,144.82,47.01376235]
[1741370162219,6.3349,144.94,144.85,47.01376235]
[1741370162430,6.3349,144.94,144.83,7.82]
[1741370163135,6.3349,144.94,144.79,7.82]
[1741370163933,6.3349,144.94,144.79,55.86918012]
[1741370164506,6.3349,144.94,144.81,47.01376235]
[1741370164711,6.3349,144.94,144.86,47.01376235]
[1741370164908,3.883,144.96,144.86,55.86864631]
[1741370165168,3.883,144.96,144.86,7.82]
[1741370165358,3.883,144.96,144.87,48.04875096]
[1741370165558,0.03,144.98,144.91,47.01376235]
[1741370165762,0.03,144.98,144.93,47.01376235]
[1741370165943,0.03,144.98,144.92,7.82]
[1741370167760,0.03,144.96,144.92,7.82]
[1741370167957,0.03,144.96,144.92,3.191936]
[1741370168642,0.03,144.96,144.92,50.20569835]
[1741370168876,0.03,144.96,144.94,47.01376235]
[1741370169079,0.03,144.96,144.93,48.0482289]
[1741370169234,0.03,144.96,144.93,1.03446655]
[1741370169430,0.03,144.96,144.93,48.0482289]
[1741370169636,0.03,144.96,144.92,3.191936]
[1741370169836,0.03,144.96,144.9,47.01376235]
[1741370170064,0.03,144.96,144.91,7.82]
[1741370170568,0.03,144.96,144.92,48.04844985]
[1741370170761,0.03,144.96,144.93,47.01376235]
[1741370171068,0.03,144.96,144.94,48.04815818]
[1741370171241,0.03,144.96,144.94,1.03439583]
[1741370171444,0.03,144.96,144.95,47.01376235]
[1741370172062,0.03,144.96,144.95,1.03426141]
[1741370172260,0.03,144.96,144.91,8.8543487]
[1741370172459,0.03,144.96,144.91,7.82]
[1741370173560,0.03,144.96,144.87,7.82]
[1741370173746,0.03,144.96,144.87,55.86866181]
[1741370173962,0.03,144.96,144.88,47.01376235]
[1741370174274,0.03,144.96,144.9,47.01376235]
[1741370174451,0.03,144.96,144.94,47.01376235]
[1741370174777,0.03,144.96,144.95,55.86803576]
[1741370175155,0.03,144.96,144.95,63.62543576]
[1741370175860,0.03,144.98,144.95,110.63919811]
[1741370176054,0.0001,144.98,144.97,94.0275247]
[1741370176278,1.8624557,145.12,144.97,115.97119098]
[1741370176487,1.8624557,145.12,145.08,47.01376235]
[1741370176656,1.8624557,145.12,145.09,8.85328443]
[1741370176854,1.8624557,145.12,145.09,7.82]
[1741370177356,1.8624557,145.12,145.04,7.82]
[1741370177976,6.3889,145.11,145.0,7.82]
[1741370178153,6.3889,145.11,145.0,8.85418961]
[1741370178483,6.3889,145.11,145.0,7.82]
[1741370178893,14.1889,145.11,145.0,7.82]
[1741370179952,3.7687,145.1,145.0,7.82]
[1741370180363,3.7687,145.1,145.0,55.86766183]
[1741370180580,3.7687,145.1,145.01,47.01376235]
[1741370180768,3.7687,145.1,145.02,47.01376235]
[1741370181262,3.7687,145.1,145.01,48.04753848]
[1741370181996,3.7687,145.1,145.0,7.82]
[1741370182196,3.7687,145.1,145.0,55.86765452]
[1741370182781,6.3889,145.11,145.03,47.01376235]
[1741370182782,0.03,145.11,145.03,47.01376235]
[1741370182982,0.03,145.11,145.04,47.01376235]
[1741370183184,0.03,145.11,145.03,48.0473508]
[1741370183592,0.03,145.11,145.06,47.01376235]
[1741370183771,0.03,145.11,145.07,55.84714317]
[1741370184408,0.03,145.11,145.08,53.90646235]
[1741370184618,0.03,145.11,145.09,1.03332758]
[1741370185273,0.03,145.11,145.08,1.03323691]
[1741370185908,0.03,145.11,145.08,47.01376235]
[1741370186205,0.03,145.11,145.01,7.3743]
[1741370186406,0.03,145.11,145.04,7.8]
[1741370186609,0.03,145.11,145.03,7.8]
[1741370188029,0.03,145.11,144.98,7.3743]
[1741370188322,0.03,145.11,145.01,54.81376235]
[1741370188525,0.03,145.11,145.01,8.83370625]
[1741370188696,0.03,145.11,145.01,7.8]
[1741370190097,0.03,145.11,145.02,47.01376235]
[1741370190415,0.03,145.11,145.01,55.8475155]
[1741370190719,0.03,145.11,145.02,48.04761688]
[1741370191099,0.03,145.11,145.01,7.8]
[1741370191798,0.03,145.11,145.0,7.8]
[1741370192221,0.03,145.11,144.97,48.08075434]
[1741370192429,3.5264,145.1,144.98,7.8]
[1741370193824,3.5264,145.1,144.98,54.81376235]
[1741370194119,3.5264,145.1,144.98,7.8]
[1741370194714,11.7167,145.09,144.98,7.8]
[1741370195325,11.7167,145.09,144.97,0.033]
[1741370195502,6.3589,145.08,144.97,0.033]
[1741370195703,7.8,145.07,144.97,0.033]
[1741370196103,3.5362,145.06,144.91,7.8]
[1741370196299,3.5362,145.06,144.87,149.26]
[1741370196300,6.3589,145.05,144.87,149.26]
[1741370196504,3.5362,145.04,144.87,157.06]
[1741370196734,6.3589,145.02,144.87,157.06]
[1741370197029,7.8,145.01,144.84,47.01376235]
[1741370197400,3.5212,145.0,144.83,0.033]
[1741370197834,3.5212,145.0,144.83,7.833]
[1741370198039,3.5212,145.0,144.83,14.7376]
[1741370198216,6.3589,144.99,144.83,7.833]
[1741370198536,6.3589,144.97,144.83,0.033]
[1741370198724,4.8288,144.96,144.83,0.033]
[1741370199033,7.8,144.95,144.83,0.033]
[1741370199345,6.3589,144.93,144.83,0.033]
[1741370200012,11.97952841,144.93,144.77,0.033]
[1741370200817,11.7304,144.92,144.77,0.033]
[1741370202009,3.6869,144.91,144.77,0.033]
[1741370202341,6.3589,144.88,144.77,0.033]
[1741370202507,3.5916,144.86,144.76,0.033]
[1741370202726,4.8325,144.85,144.76,0.033]
[1741370202929,11.7361,144.85,144.76,0.033]
[1741370204852,18.6397,144.85,144.76,0.033]
[1741370205223,18.6397,144.85,144.76,0.0001]
[1741370206050,6.3589,144.84,144.72,0.033]
[1741370206227,306.53050362,144.85,144.68,0.033]
[1741370206432,10.208,144.83,144.68,0.033]
[1741370206643,10.208,144.81,144.68,0.033]
[1741370206840,157.26,144.8,144.68,0.033]
[1741370207041,7.82,144.79,144.68,0.033]
[1741370207423,6.3502,144.77,144.62,0.033]
[1741370208626,7.82,144.76,144.62,0.033]
[1741370208853,11.7442,144.75,144.62,0.033]
[1741370210363,7.82,144.74,144.62,0.033]
[1741370210859,11.7459,144.73,144.62,0.033]
[1741370211157,4.8365,144.73,144.62,0.033]
[1741370211843,6.3502,144.71,144.62,0.033]
[1741370213043,11.7483,144.7,144.61,0.013]
[1741370213356,3.6995,144.69,144.6,0.033]
[1741370213648,7.82,144.68,144.6,0.033]
[1741370214767,3.6995,144.69,144.6,0.033]
[1741370214937,4.8382,144.68,144.6,0.033]
[1741370215650,11.75,144.68,144.6,0.033]
[1741370217129,18.6618,144.68,144.6,0.033]
[1741370218174,4.8382,144.68,144.6,0.033]
[1741370219174,1.3823,144.68,144.61,47.01376235]
[1741370219341,1.3823,144.68,144.6,54.86676235]
[1741370219542,4.8382,144.68,144.6,7.853]
[1741370220158,3.20252371,144.68,144.6,7.853]
[1741370221361,4.58482371,144.68,144.6,7.853]
[1741370221542,11.49662371,144.68,144.6,7.853]
[1741370221744,19.31662371,144.68,144.6,0.033]
[1741370222964,12.40482371,144.68,144.6,0.033]
[1741370223261,9.2023,144.68,144.6,0.033]
[1741370223447,12.6582,144.68,144.6,0.033]
[1741370223653,4.8382,144.68,144.6,0.033]
[1741370223964,11.75,144.68,144.6,0.033]
[1741370224283,18.6618,144.68,144.6,0.033]
[1741370224748,10.2192,144.67,144.6,0.0001]
[1741370224948,7.82,144.66,144.57,0.033]
[1741370225155,11.7524,144.65,144.57,0.033]
[1741370226176,18.6656,144.65,144.57,0.033]
[1741370226360,4.8392,144.65,144.57,0.033]
[1741370227372,11.7524,144.65,144.57,0.033]
[1741370227546,11.7524,144.65,144.48,149.713]
[1741370227745,3.854,144.64,144.48,0.033]
[1741370227950,10.09932309,144.64,144.48,0.033]
[1741370228151,10.09932309,144.64,144.56,0.033]
[1741370228981,6.3502,144.63,144.56,0.033]
[1741370229152,4.8402,144.62,144.56,0.033]
[1741370229758,11.7548,144.62,144.48,0.033]
[1741370230063,15.71328329,144.61,144.48,0.033]
[1741370230262,7.82,144.6,144.48,0.033]
[1741370230461,14.06532309,144.6,144.48,0.033]
[1741370231190,7.82,144.6,144.48,0.033]
[1741370235282,14.06532309,144.6,144.48,0.033]
[1741370235583,9.9058,144.58,144.45,0.033]
[1741370235886,9.9058,144.58,144.42,0.033]
[1741370235887,9.9058,144.56,144.42,0.033]
[1741370236072,6.24532309,144.55,144.42,0.033]
[1741370236268,7.82,144.54,144.42,0.033]
[1741370236469,14.06532309,144.54,144.42,0.033]
[1741370236669,6.24532309,144.53,144.42,0.033]
[1741370237283,6.24532309,144.53,144.33,0.033]
[1741370237284,9.9533,144.5,144.33,0.033]
[1741370237457,9.9399,144.48,144.33,0.033]
[1741370237658,6.4307,144.46,144.33,0.033]
[1741370237884,5.80478329,144.45,144.33,0.033]
[1741370238193,11.27868745,144.45,144.33,0.033]
[1741370238560,6.4307,144.43,144.22,149.8]
[1741370238763,6.24532309,144.42,144.22,149.8]
[1741370238977,7.82,144.41,144.24,47.21100316]
[1741370239461,7.82,144.41,144.23,1.0392287]
[1741370239685,7.82,144.41,144.22,149.8]
[1741370240182,7.82,144.4,144.26,47.21100316]
[1741370240386,7.82,144.4,144.25,7.82]
[1741370240589,7.82,144.4,144.25,55.03100316]
[1741370240998,7.82,144.4,144.27,47.21100316]
[1741370241291,7.82,144.4,144.25,7.82]
[1741370241587,7.82,144.41,144.29,47.21100316]
[1741370241789,7.82,144.41,144.3,47.21100316]
[1741370242295,7.82,144.41,144.31,47.21100316]
[1741370242474,3.8344,144.44,144.33,47.21100316]
[1741370242667,3.8344,144.44,144.34,47.21100316]
[1741370242875,6.4307,144.48,144.37,47.21100316]
[1741370243190,6.4307,144.48,144.34,47.21100316]
[1741370243392,6.4307,144.48,144.35,47.21100316]
[1741370243574,11.85970492,144.48,144.31,11.5892]
[1741370243775,11.85970492,144.48,144.35,47.21100316]
[1741370244389,11.85970492,144.48,144.32,1.03877206]
[1741370244594,11.85970492,144.48,144.33,47.21100316]
[1741370244781,6.24532309,144.54,144.42,47.21100316]
[1741370244982,0.03,144.68,144.43,11.79399453]
[1741370245190,5.50927455,144.65,144.53,47.21100316]
[1741370245382,5.50927455,144.65,144.54,8.02]
[1741370245701,0.03,144.68,144.59,47.21100316]
[1741370246013,0.03,144.68,144.56,47.21100316]
[1741370246218,0.03,144.68,144.58,8.02]
[1741370246514,0.03,144.68,144.55,157.94]
[1741370246672,8.02,144.67,144.55,149.92]
[1741370247486,0.03,144.68,144.56,47.21100316]
[1741370247711,0.03,144.68,144.6,47.21100316]
[1741370247927,0.03,144.68,144.62,47.21100316]
[1741370248221,0.03,144.68,144.64,47.21100316]
[1741370248416,0.03,144.68,144.62,47.21100316]
[1741370248800,0.03,144.68,144.61,47.21100316]
[1741370249001,0.03,144.68,144.64,47.21100316]
[1741370249320,0.03,144.68,144.6,1.03686443]
[1741370249518,0.03,144.68,144.63,47.21100316]
[1741370249719,0.03,144.68,144.65,47.21100316]
[1741370249933,0.03,144.68,144.66,47.21100316]
[1741370250098,0.03,144.68,144.65,55.21100316]
[1741370250420,0.03,144.68,144.65,8.0]
[1741370250729,0.03,144.68,144.65,55.21100316]
[1741370251104,0.03,144.68,144.65,8.0]
[1741370251813,0.03,144.68,144.63,47.21100316]
[1741370252320,0.03,144.68,144.64,47.21100316]
[1741370253006,0.03,144.68,144.63,47.21100316]
[1741370253519,0.03,144.68,144.66,47.21100316]
[1741370253732,0.03,144.68,144.67,47.21100316]
[1741370254304,0.03,144.68,144.66,47.21100316]
[1741370255429,0.03,144.68,144.65,47.21100316]
[1741370255926,0.03,144.68,144.64,47.21100316]